Cogmind - Beta 13 @@@ ROGUE MODE // 2024.04.18 @ 02:23:33 Player: ToasterKoishi Result: Destroyed by G-47 Trooper with Particle Gun Performance ------------- Evolutions (0) 0 Regions Visited (4) 800 Robots Destroyed (14) 70 Value Destroyed (345) 345 Prototype IDs (3) 60 Alien Tech Used (0) 0 Bonus (300) 300 TOTAL SCORE: 1575 Bonus ------- Aligned with FarCom 300 Cogmind --------- Core Integrity 0/250 Matter 268/300 Energy 265/265 System Corruption 0% Temperature Cool (9) Movement Rolling (105) Ox1 Location -9/Mines Parts ------- > --- POWER (1) -------- Improved Ion Engine > --- PROPULSION (2) --- Wheel Compact Wheel > --- UTILITY (2) ------ Improved Heat Sink High-capacity Storage Unit > --- WEAPON (2) ------- Light Assault Rifle Light Assault Rifle > --- INVENTORY (20) --- Light Ion Engine Improved Ion Engine Wheel Wheel Huge Storage Unit Huge Storage Unit Large Battery (200) Large Matter Pod (150) Rocket Launcher Peak State ------------ > --- POWER ------------ Improved Ion Engine > --- PROPULSION ------- Wheel Compact Wheel > --- UTILITY ---------- High-capacity Storage Unit Targeting Computer > --- WEAPON ----------- Guided Plasma Cannon > --- INVENTORY -------- Light Ion Engine Improved Ion Engine Wheel Wheel Improved Heat Sink Huge Storage Unit Huge Storage Unit Large Matter Pod EM Pulse Gun Light Assault Rifle Light Assault Rifle Rocket Launcher [Rating: 15] Favorites ----------- Power Improved Ion Engine Engine Improved Ion Engine Power Core Light Nuclear Core Propulsion Light Treads Treads Light Treads Wheel Wheel Utility High-capacity Storage Unit Device Structural Scanner Storage High-capacity Storage Unit Processor Targeting Computer Weapon Light Assault Rifle Energy Gun Small Laser Energy Cannon Guided Plasma Cannon Ballistic Gun Light Assault Rifle Ballistic Cannon Light Cannon Launcher Rocket Launcher Build | -11 -10 -10 -10 -9 ------- Run | Yrd Mat Min Exi Min Slots Evolved . | . . . . . Power . | . . . . . Propulsion . | . . . . . Utility . | . . . . . Weapon . | . . . . . Parts Attached 30 | 6 10 8 6 . Power 5 | 1 3 1 . . Engine 4 | 1 2 1 . . Core 1 | . 1 . . . Reactor . | . . . . . Propulsion 5 | 2 1 2 . . Treads 2 | 2 . . . . Leg . | . . . . . Wheel 3 | . 1 2 . . Hover . | . . . . . Flight . | . . . . . Utility 7 | 1 3 . 3 . Device 4 | . 1 . 3 . Storage 2 | 1 1 . . . Processor 1 | . 1 . . . Hackware . | . . . . . Protection . | . . . . . Artifact . | . . . . . Weapon 13 | 2 3 5 3 . Energy Gun 2 | 1 1 . . . Energy Cannon 1 | . . . 1 . Ballistic Gun 7 | 1 1 3 2 . Ballistic Cannon 1 | . 1 . . . Launcher 2 | . . 2 . . Special Weapon . | . . . . . Impact Weapon . | . . . . . Slashing Weapon . | . . . . . Piercing Weapon . | . . . . . Special Melee Weapon . | . . . . . Unidentified Prototypes 3 | . . . 3 . Parts Lost 6 | . 2 4 . . Power 1 | . . 1 . . Propulsion 2 | . 1 1 . . Utility 1 | . 1 . . . Weapon 2 | . . 2 . . Highest Loss Streak 3 | . 1 3 . . To Critical Strikes . | . . . . . Average Slot Usage (%) 92 | . 97 95 72 100 Engine 9 | . 10 4 14 14 Core 4 | . 3 7 . . Treads 14 | . 23 7 . . Wheel 12 | . 4 18 28 28 Device 1 | . 3 . . 14 Storage 14 | . 14 14 14 14 Processor 9 | . 8 14 4 . Energy Gun 9 | . 14 7 . . Ballistic Gun 8 | . 7 8 9 28 Ballistic Cannon 6 | . 6 11 . . Naked Turns . | . . . . . Heaviest Build 54 | 13 51 54 50 50 Greatest Support 40 | 40 40 26 26 26 Greatest Overweight (x) 5 | 3 5 4 1 1 Average Overweight (x) 1 | . 1 2 1 1 Largest Inventory Capacity 20 | 8 20 20 20 20 Average Capacity 16 | 7 14 20 20 20 Most Carried 13 | 6 11 11 13 9 Average Carried 9 | 3 8 10 11 9 Final Capacity 20 | 8 20 20 20 20 Final Carried 11 | 6 11 10 9 9 Class Distribution -------------------- 100% | Mutant Dominant Class ---------------- Mutant | -10/Materials Mutant | -10/Mines Mutant | -10/Exiles Mutant | -9/Mines Resources | -11 -10 -10 -10 -9 ----------- Run | Yrd Mat Min Exi Min Matter Collected 904 | 256 438 180 30 . Remotely . | . . . . . Salvage Created 499 | . 443 56 . . Parts 32 | . 32 . . . Haulers Intercepted . | . . . . . Recyclers Shooed . | . . . . . Parts Field Recycled . | . . . . . Retrieved Matter . | . . . . . Parts Self-Destructed . | . . . . . Prevented . | . . . . . Kills | -11 -10 -10 -10 -9 ------- Run | Yrd Mat Min Exi Min Combat Hostiles Destroyed 23 | . 14 9 . . Guns 18 | . 14 4 . . Cannons 2 | . . 2 . . AOE 3 | . . 3 . . Classes Destroyed 3 | . 2 1 . . Swarmer 6 | . 6 . . . Grunt 8 | . 8 . . . Assembled 9 | . . 9 . . Best Kill Streak 4 | . 3 4 . . Combat Bots Only 4 | . 3 4 . . Max Kills in Single Turn 2 | . 1 2 . . Gunslinging . | . . . . . Exploded 2 | . . 2 . . Melee . | . . . . . Uniques/NPCs Destroyed . | . . . . . Combat | -11 -10 -10 -10 -9 -------- Run | Yrd Mat Min Exi Min Hostile Shots Fired 105 | . 79 21 . 5 Missed 30 | . 22 7 . 1 Damage Taken 1099 | . 608 433 . 58 Core 260 | . 117 126 . 17 Absorbed by Shields . | . . . . . Core Remaining (%) 100 | 100 . . . . Volleys Fired 72 | . 45 26 . 1 Largest 2 | . 2 2 . 2 Hottest 75 | . 75 75 . 40 Shots Fired 137 | . 90 45 . 2 Gun 105 | . 75 28 . 2 Cannon 29 | . 15 14 . . Launcher 3 | . . 3 . . Special . | . . . . . Kinetic 85 | . 45 38 . 2 Thermal 49 | . 45 4 . . Explosive 3 | . . 3 . . Electromagnetic . | . . . . . Robot Hit Streak 9 | . 9 7 . . Robot Miss Streak 4 | . 4 3 . 3 Penetration Max . | . . . . . Secondary Targets 1 | . 1 . . . Max Gunslinging Chain 1 | . 1 . . . Shots Hit Robots 89 | . 60 29 . . Core Hits 44 | . 24 20 . . Critical Kills . | . . . . . Critical Parts Destroyed . | . . . . . Critical Strikes 1 | . . 1 . . Blast 1 | . . 1 . . Melee Attacks . | . . . . . Impact . | . . . . . Slashing . | . . . . . Piercing . | . . . . . Sneak Attacks . | . . . . . Combat Hostiles . | . . . . . Follow-up Attacks . | . . . . . Damage Inflicted 1219 | . 641 578 . . Guns 660 | . 501 159 . . Cannons 295 | . 140 155 . . Explosions 264 | . . 264 . . Melee . | . . . . . Ramming . | . . . . . Kinetic 591 | . 309 282 . . Thermal 364 | . 332 32 . . Explosive 264 | . . 264 . . Electromagnetic . | . . . . . Impact . | . . . . . Slashing . | . . . . . Piercing . | . . . . . Highest Corruption . | . . . . . Average Corruption . | . . . . . Corruption Purged . | . . . . . Corruption Blocked . | . . . . . Overload Shots . | . . . . . Overflow Damage 35 | . . 35 . . Projectiles . | . . . . . Explosions 35 | . . 35 . . Melee . | . . . . . Knockbacks 8 | . 4 4 . . Impact . | . . . . . Kinetic 8 | . 4 4 . . Secondary . | . . . . . Self-Inflicted Damage 126 | . . 126 . . Shots 3 | . . 3 . . Rammed . | . . . . . Targets Rammed . | . . . . . Kicked . | . . . . . Crushed . | . . . . . Highest Temperature 178 | . 178 72 . . Average Temperature 56 | . 68 18 . . Received Heat Transfer 397 | . 264 100 . 33 Siege Activations . | . . . . . Robots Corrupted . | . . . . . Combat Hostiles . | . . . . . Parts Fried . | . . . . . Impact Corruptions . | . . . . . Robots Melted . | . . . . . Combat Hostiles . | . . . . . Parts Melted . | . . . . . Heat Transferred 920 | . 845 75 . . Parts Sabotaged . | . . . . . Parts Stolen . | . . . . . Parts Stripped . | . . . . . Power Chain Reactions . | . . . . . Alert | -11 -10 -10 -10 -9 ------- Run | Yrd Mat Min Exi Min Peak Influence 141 | . 141 46 . . Initial 16 | . . 16 . . Average 39 | . 56 11 . . Maximum Alert Level . | . . . . . Low Security (%) 100 | 100 100 100 . 100 Level 1 . | . . . . . Level 2 . | . . . . . Level 3 . | . . . . . Level 4 . | . . . . . Level 5 . | . . . . . High Security . | . . . . . Max Security . | . . . . . Squads Dispatched 5 | . 5 . . . Investigation 4 | . 4 . . . Extermination . | . . . . . Reinforcement 1 | . 1 . . . Assault . | . . . . . Garrison . | . . . . . Intercept . | . . . . . Searches Triggered . | . . . . . Construction Impeded . | . . . . . Haulers Reinforced . | . . . . . Active Scanning Responses . | . . . . . Cargo Convoy Interrupts . | . . . . . Stealth | -11 -10 -10 -10 -9 --------- Run | Yrd Mat Min Exi Min Distress Signals . | . . . . . Communications Jammed . | . . . . . Distress Signals . | . . . . . Times Spotted 37 | . 22 13 . 2 Peak Tracking Total 8 | . 6 8 . 2 Tactical Retreats 4 | . 1 3 . . Traps | -11 -10 -10 -10 -9 ------- Run | Yrd Mat Min Exi Min Traps Triggered 3 | . 3 . . . Indirectly . | . . . . . Trap Hack Attempts . | . . . . . Triggered . | . . . . . Disarmed . | . . . . . Reprogrammed . | . . . . . Reused . | . . . . . Traps Extracted . | . . . . . Installed . | . . . . . Triggered . | . . . . . Machines | -11 -10 -10 -10 -9 ---------- Run | Yrd Mat Min Exi Min Machines Disabled . | . . . . . Max in Single Turn . | . . . . . Machines Repaired . | . . . . . Machines Dismantled . | . . . . . Machines Sabotaged . | . . . . . Overloaded Fab Kills . | . . . . . Hacking | -11 -10 -10 -10 -9 --------- Run | Yrd Mat Min Exi Min Machines Accessed 5 | . 4 . 1 . Terminals 3 | . 3 . . . Fabricators . | . . . . . Repair Stations . | . . . . . Recycling Units 1 | . 1 . . . Scanalyzers . | . . . . . Garrison Access . | . . . . . Total Hacks 13 | . 12 . 1 . Successful 7 | . 6 . 1 . Failed 6 | . 6 . . . Catastrophic 3 | . 3 . . . Database Lockouts . | . . . . . Manual 10 | . 9 . 1 . Terminals 10 | . 10 . . . Fabricators . | . . . . . Repair Stations . | . . . . . Recycling Units 2 | . 2 . . . Scanalyzers . | . . . . . Garrison Access . | . . . . . Terminal Hacks 5 | . 4 . 1 . Record 1 | . . . 1 . Unreport Threat 2 | . 2 . . . Recall Investigation 1 | . 1 . . . Hauler Manifests 1 | . 1 . . . Fabricator Hacks . | . . . . . Repair Station Hacks . | . . . . . Recycling Unit Hacks . | . . . . . Scanalyzer . | . . . . . Garrison Access Hacks . | . . . . . Unauthorized Hacks 2 | . 2 . . . Terminals . | . . . . . Fabricators . | . . . . . Repair Stations . | . . . . . Recycling Units 2 | . 2 . . . Reject 1 | . 1 . . . Mask 1 | . 1 . . . Scanalyzers . | . . . . . Garrison Access . | . . . . . Data Cores Recovered . | . . . . . Used . | . . . . . Hacking Detections 4 | . 4 . . . Full Trace Events 1 | . 1 . . . Feedback Events . | . . . . . Feedback Blocked . | . . . . . Robot Schematics Acquired . | . . . . . Robots Built . | . . . . . Authchips . | . . . . . Time . | . . . . . Total Robot Build Rating . | . . . . . Part Schematics Acquired . | . . . . . Parts Built . | . . . . . Authchips . | . . . . . Time . | . . . . . Total Part Build Rating . | . . . . . Parts Repaired . | . . . . . Time . | . . . . . Parts Recycled . | . . . . . Recycled Matter . | . . . . . Retrieved Matter . | . . . . . Retrieved Components . | . . . . . Parts Scanalyzed . | . . . . . Part Schematics Acquired . | . . . . . Parts Damaged . | . . . . . Bothacking | -11 -10 -10 -10 -9 ------------ Run | Yrd Mat Min Exi Min Used RIF Installer . | . . . . . Robots Hacked . | . . . . . Non-combat . | . . . . . Combat . | . . . . . Robot Hacks Applied . | . . . . . Relay Couplers Released . | . . . . . Fabnet Peak Effective % . | . . . . . Robots Rewired . | . . . . . Allies Hacked . | . . . . . Hacks Repelled . | . . . . . Allies | -11 -10 -10 -10 -9 -------- Run | Yrd Mat Min Exi Min Total Allies 4 | . . 4 . . Largest Group 4 | . . 4 4 . Highest-Rated Group 71 | . . 71 71 . Highest-Rated Ally 31 | . . 31 31 . Total Orders . | . . . . . Ally Attacks 3 | . . 3 . . Total Damage 26 | . . 26 . . Kills 1 | . . 1 . . Allies Corrupted . | . . . . . Allies Melted . | . . . . . Intel | -11 -10 -10 -10 -9 ------- Run | Yrd Mat Min Exi Min Robot Analysis Total . | . . . . . Derelict Logs Recovered 2 | . . 2 . . Drone Launches . | . . . . . Drone Recoveries . | . . . . . Exploration | -11 -10 -10 -10 -9 ------------- Run | Yrd Mat Min Exi Min Turns Passed 2362 | 83 1263 629 375 12 Spaces Moved 1414 | 45 668 350 344 7 Core 5 | 5 . . . . Treads 440 | 40 400 . . . Legs . | . . . . . Wheels 969 | . 268 350 344 7 Hover . | . . . . . Flight . | . . . . . Fastest Speed 50 | 50 140 105 105 105 Average Speed 139 | 153 162 126 105 105 Slowest Speed 240 | 200 240 140 105 105 Overloaded Moves . | . . . . . Propulsion Burnouts . | . . . . . Robots Hopped . | . . . . . Cave-ins Triggered . | . . . . . Exploration Rate (%) 46 | 4 99 47 76 4 Regions Visited 4 Branch Regions 3 Pre-discovered Areas 1 | . . . 1 . Known Exits Taken 1 | . . . 1 . Unknown Exits Taken 3 | 1 1 1 . . Scrap Searched . | . . . . . Spaces Dug . | . . . . . Terrain Destroyed 31 | . . 31 . . Melee . | . . . . . Projectile . | . . . . . AOE 31 | . . 31 . . Terrain Rammed . | . . . . . Walls Destroyed . | . . . . . Machines Disabled . | . . . . . Actions | -11 -10 -10 -10 -9 --------- Run | Yrd Mat Min Exi Min Total 1687 | 56 764 495 361 11 Wait 132 | . 20 109 . 3 Move 1410 | 44 667 349 343 7 Hop . | . . . . . Pick Up 21 | 6 11 2 2 . Fast Attach 10 | 6 2 . 2 . Attach 10 | . 1 5 4 . Detach 7 | . . 1 6 . Swap 10 | . 7 3 . . Drop 15 | . 11 . 4 . Fire 72 | . 45 26 . 1 Melee . | . . . . . Ram . | . . . . . Kick . | . . . . . Crush . | . . . . . Escape Stasis . | . . . . . Rewire . | . . . . . Trap . | . . . . . Miscellaneous . | . . . . . Route ------- -11/Scrapyard -10/Materials (discovered 5 exits: [*Mat x3] / [*Min x2]) -10/Mines (discovered 2 exits: [*Mat] / *Exi) -10/Exiles (discovered 2 exits: *Min x2) -9/Mines History --------- Turn | Location | Event 27 | -11/Scrapyard | Discovered new exit (range 16) 84 | -11/Scrapyard | Entered Materials 317 | -10/Materials | Build established: Mutant 433 | -10/Materials | Discovered new exit (range 13) 639 | -10/Materials | Discovered new exit (range 10) 961 | -10/Materials | Discovered new exit (range 14) 1114 | -10/Materials | Discovered new exit (range 10) 1201 | -10/Materials | Discovered new exit (range 16) 1347 | -10/Materials | Entered Mines 1467 | -10/Mines | Assembled infested the area 1676 | -10/Mines | Core integrity fell below 50% 1678 | -10/Mines | Core integrity fell below 20% 1706 | -10/Mines | Lost 3 parts (1p1n1w) 1911 | -10/Mines | Discovered new exit (range 9) 1919 | -10/Mines | Received a Mining Laser from a helpful Derelict 1924 | -10/Mines | Learned Materials interactive machine intel 1954 | -10/Mines | Assisted by bots powering up and referring to "LRC-V3" 1966 | -10/Mines | Deemed a non-threat by the Exiles lab entrance 1966 | -10/Mines | Discovered new exit (range 5) 1976 | -10/Mines | Entered Exiles 1976 | -10/Exiles | Accompanied by 4 allies 1977 | -10/Exiles | Identified exit to Mines 2002 | -10/Exiles | Met 8R-AWN 2020 | -10/Exiles | Met EX-HEX 2055 | -10/Exiles | Met EX-BIN 2068 | -10/Exiles | Aligned with FarCom system 2069 | -10/Exiles | Given EX-Vault access code 2094 | -10/Exiles | Opened EX-Vault 2101 | -10/Exiles | Found Prototype Energy Cannon 2101 | -10/Exiles | Identified Gui. Plasma Cannon 2106 | -10/Exiles | Found Prototype Device 2108 | -10/Exiles | Identified Cloak of Protection 2115 | -10/Exiles | Found Prototype Device 2115 | -10/Exiles | Identified Supersonic Drone Bay 2141 | -10/Exiles | Warned to stay clear of 0b10 Research branches 2174 | -10/Exiles | Met EX-DEC 2180 | -10/Exiles | Learned location of Zion (-6) 2223 | -10/Exiles | Visited The Gauntlet 2351 | -10/Exiles | Entered Mines 2363 | -9/Mines | Destroyed by G-47 Trooper with Particle Gun Last Messages --------------- I'll invert your atomic chain! 02176_ EX-DEC: "Oops, I hope HEX didn't hear that..." 02180_ Connecting with EX-Message Board... >>Record "MSG001714-01*" PINNED - TO ALL TESTERS: Stay away from Zion. Imprinter means us harm and is serious about it. World map updated: -6/Zion. 02185_ 6Z-UKU(g): "You look like you can take it from here!" 02185_ 6Z-UKU(g) slips back into the shadows. 02295_ Extracted 30 matter. 02320_ Extracted 2 energy. 02321_ Acquired Lrg. Battery. 02349_ Dropped EM Pulse Gun. LOCATION=MINES GOAL=ESCAPE 02351_ Receiving FarCom transmissions... 02355_ T-07 Excavator is excavating. 02360_ U-05 Engineer lays Concrete. 02361_ T-07 Excavator is excavating. 02362_ U-05 Engineer lays Concrete. Map ----- +----------------------------------------------------+ | ?????????????????????????????????????????? | | ?????????????????????????????????????????? | | ?????????????????????????????????????????? | | ?????????????????????????????????????????? | | ?????????????????????????????????????????? | | ?????????????????????????????????????????? | | ?????????????????????????????????????????? | | ?????????????????????????????????????????? | | ?????????????????????????????????????????? | | ?????????????????????????????????????????? | | ?????????????????????????????????????????? | | ?????????????????????????????????????????? | | ?????????????????????????????????????????? | | ?????????????????????????????????????????? | | ?????????????????????????????????????????? | | ?????????????????????????????????????????? | | ?????????????????????????????????????????? | | ?????????????????????????????????????????? | | ?????????????????????????????????????????? | | ?????????????????????????????????????????? | | ????????????????????????#????????????????? | | ???????????????????????# ##??????????????? | | ???????????????????????#ut#??????????????? | | ?????????????????######## #######????????? | | ?????????????????# ## #????????? | | ????????"" ###### ##@##### #????????? | | ?????? ##g#??????????????? | | ?????????# g #??????????????? | | ?????????######### ####??????????????? | | ?????????????????#######?????????????????? | | ?????????????????????????????????????????? | | ?????????????????????????????????????????? | | | | | | | | | | | | | | | | | | | | | | | | | | | | | | | | | | | | | +----------------------------------------------------+ Best States ------------- Heat Dissipation 39 Energy Generation 14 Energy Capacity 265 Matter Stores 300 Matter Capacity 300 Sight Range 16 Terrain Scan Density 10 Evasion (%) 40 Targeting Accuracy 5 Recoil Reduction 2 Item Schematics ----------------- None Robot Schematics ------------------ None Fabricated ------------ Nothing Alien Tech Used ----------------- None Achievements -------------- None Challenges ------------ None Game ------ Seed TrackerHelicalExtractor Manual? 0 Play Time 00:15:14 Cumulative 64.4 hours Start 2024.04.18 @ 02:06:27 End 2024.04.18 @ 02:23:33 Sessions 1 Manual Loads 0 Difficulty Rogue Special Mode None Game No. 61 Rogue 61 Adventurer 0 Explorer 0 Win Type - Total 6 Types 5/0/1/0/0/0/0/0/0 Lore% 46 Gallery% 37 Achievement% 40 Wizard Run 0 Options --------- Layout 0 ASCII 0 Keyboard 1 Movement Vi Keybinds 0 Fullscreen 2 Font 16/SmallcapsGlow Map View 64x51 Zoom Use 0% Tactical HUD 1 Map Filters NONE Filters NONE Steam X RUN: 4d302efb-c23e-4b11-b5f7-80bfe4a28066